Workbook

Sheet Summary
A2: INR | B2: Actual | C2: % | D2: Budget | E2: % | F2: Difference | G2: %
A3: Gross Costs | B3: 2012-2013 | D3: 2013-2014
A4: Program | B4: ='[1]School Report'!$H$5 -> 2835015 | C4: =B4/B$8 -> 0.474487995 | D4: ='[2]NST-School-Budget 2013-14'!$F$7+'[2]NST-School-Budget 2013-14'!$F$12+'[2]NST-School-Budget 2013-14'!$F$16+'[2]NST-School-Budget 2013-14'!$F$42 -> 1665540 | E4: =D4/D$8 -> 0.4195947953 | F4: =B4-D4 -> 1169475 | G4: =F4/B4 -> 0.4125110449
A5: Staff | B5: =SUM('[1]School Report'!$H$12) -> 2407407 | C5: =B5/B$8 -> 0.4029205209 | D5: ='[2]NST-School-Budget 2013-14'!$F$25 -> 1916561 | E5: =D5/D$8 -> 0.4828338079 | F5: =B5-D5 -> 490846 | G5: =F5/B5 -> 0.2038899114
A6: Administration | B6: ='[1]School Report'!$H$14 -> 603201 | C6: =B6/B$8 -> 0.1009559502 | D6: ='[2]NST-School-Budget 2013-14'!$F$39+'[2]NST-School-Budget 2013-14'!$F$45 -> 387300 | E6: =D6/D$8 -> 0.09757139679 | F6: =B6-D6 -> 215901 | G6: 0.3579254676
A7: Capital | B7: ='[1]School Report'!$H$27 -> 129270 | C7: =B7/B$8 -> 0.02163553389 | E7: =D7/D$8 -> 0 | F7: =B7-D7 -> 129270 | G7: 1
A8: Total Costs | B8: =SUM(B4:B7) -> 5974893 | C8: =B8/B$8 -> 1 | D8: =SUM(D4:D7) -> 3969401 | E8: =D8/D$8 -> 1 | F8: =B8-D8 -> 2005492 | G8: 0.3356532075
A10: Sources of Funds
A11: Tata Trust | B11: ='Actual 2012-2013'!L13 -> 2272783 | C11: =B11/B$15 -> 0.380388904 | D11: =B11 -> 2272783 | E11: =D11/D$15 -> 0.5725758118 | F11: =B11-D11 -> 0 | G11: =-F11/B11 -> 0
A12: Asha-Boston | B12: ='Actual 2012-2013'!M7 -> 798641 | C12: =B12/B$15 -> 0.1336661594 | D12: 0 | E12: 0 | F12: =B12-D12 -> 798641 | G12: =-F12/B12 -> -1
A13: Student contributions | B13: ='Actual 2012-2013'!J7 -> 1127440 | C13: 0.1886962662 | D13: =750*10*117 -> 877500 | E13: 0.2210661004 | F13: =B13-D13 -> 249940 | G13: -0.2216880721
A14: Own Funds | B14: =B15-SUM(B11:B13) -> 1776029 | C14: 0.2972486704 | D14: =D15-SUM(D11:D13) -> 819118 | E14: 0.2063580878 | F14: =B14-D14 -> 956911 | G14: -0.5387924409
A15: Total Sources | B15: =B8 -> 5974893 | C15: 1 | D15: =D8 -> 3969401 | E15: 1 | F15: =B15-D15 -> 2005492 | G15: =-F15/B15 -> -0.3356532075
A17: Other Metrics
A18: Student count | B18: 322 | D18: 117 | F18: =D18-B18 -> -205 | G18: =F18/B18 -> -0.6366459627
A19: Cost per student | B19: =B8/B18 -> 18555.56832 | D19: =D8/D18 -> 33926.50427 | F19: =B19-D19 -> -15370.93595 | G19: =F19/B19 -> -0.8283732238

Sheet Actual 2012-2013
A1: NAVSARJAN VIDHYALAY ACTUAL EDUCATION RELATED EXPENDITURE REPORT FOR THE PERIOD 15-06-12 TO 15-06-13
A4: EXPENDITURE FOR 6 MONTHS | B4: K | C4: R | D4: S | E4: Indian | F4: Asha | G4: SDTT | H4: AMOUNT | I4: % | J4: Students contri. | K4: FUNDS | L4: TSWT | M4: ASHA
A5: Program Expenses | B5: =SUM(B6:B11) -> 614846 | C5: 507952 | D5: =SUM(D6:D11) -> 729561 | E5: 114224 | F5: 798641 | G5: 69791 | H5: =SUM(H6:H11) -> 2835015 | I5: =H5/H32 -> 0.474487995 | J5: =SUM(J6:J11) -> 1127440 | K5: 839143 | L5: 69791 | M5: 798641
A6: Teacher's training exp. | E6: =6010 -> 6010 | H6: =SUM(B6:G6) -> 6010 | K6: =H6-J6-L6-M6 -> 6010
A7: Lodging/food expenses | B7: =532525 -> 532525 | C7: =426340 -> 426340 | D7: =652138 -> 652138 | E7: =26700+25900+33025 -> 85625 | F7: 798641 | H7: =SUM(B7:G7) -> 2495269 | J7: =396200+278350+452890 -> 1127440 | K7: =H7-J7-L7-M7 -> 569188 | M7: =798641 -> 798641
A8: Boarding/Hostel expenses | B8: =27493 -> 27493 | C8: =38337 -> 38337 | D8: =18157 -> 18157 | H8: 83987 | K8: =H8-J8-L8-M8 -> 83987
A9: Educational cultural/Sport programs | B9: =14199 -> 14199 | C9: =22895 -> 22895 | D9: =43462 -> 43462 | E9: =12630 -> 12630 | H9: 93186 | K9: 93186
A10: Science Lab Materials | H10: 0 | K10: 0
A11: Travelling expenses | B11: =40629 -> 40629 | C11: =20380 -> 20380 | D11: 15804 | E11: =9959 -> 9959 | G11: 69791 | H11: 156563 | K11: 86772 | L11: 69791
A12: Program Staff Expenses | B12: =SUM(B13) -> 57837 | C12: 11375 | D12: 56525 | E12: 8887 | F12: 0 | G12: 2272783 | H12: =SUM(H13) -> 2407407 | I12: =H12/H32 -> 0.4029205209 | J12: =SUM(J13) -> 0 | K12: 134624 | L12: 2272783 | M12: 0
A13: Salaries to school staff | B13: =57837 -> 57837 | C13: =11375 -> 11375 | D13: 56525 | E13: =8887 -> 8887 | G13: =2272783 -> 2272783 | H13: =SUM(B13:G13) -> 2407407 | K13: 134624 | L13: 2272783
A14: Program Admin Expenses | B14: =SUM(B15:B26) -> 127308 | C14: 104094 | D14: =SUM(D15:D26) -> 130316 | E14: 227426 | F14: 844 | G14: 13213 | H14: =SUM(H15:H26) -> 603201 | I14: =H14/H32 -> 0.1009559502 | J14: =SUM(J15:J26) -> 0 | K14: 589144 | L14: 13213 | M14: 844
A15: Bank charges | B15: =1524 -> 1524 | C15: =579 -> 579 | D15: =878 -> 878 | F15: 844 | H15: 3825 | K15: 2981 | M15: 844
A16: Electricity expenses | B16: =45024 -> 45024 | C16: =20368 -> 20368 | D16: =18735 -> 18735 | H16: 84127 | K16: 84127
A17: Gardening expenses | B17: =1655 -> 1655 | C17: =12065 -> 12065 | D17: =13030 -> 13030 | H17: 26750 | K17: 26750
A18: Gram Panchyata Tax | B18: 0 | C18: 0 | D18: 7280 | H18: 7280 | K18: 7280
A19: Newspaper/Magazine | B19: =2708 -> 2708 | C19: =270 -> 270 | D19: =1700 -> 1700 | H19: 4678 | K19: 4678
A20: Other Misce.income | B20: =1140 -> 1140 | C20: =1460 -> 1460 | D20: =1625 -> 1625 | H20: 4225 | K20: 4225
A21: Photocopy expenses | B21: =822 -> 822 | C21: =515 -> 515 | D21: =1384 -> 1384 | H21: 2721 | K21: 2721
A22: Postage & Couriers | B22: =360 -> 360 | C22: =200 -> 200 | D22: =1520 -> 1520 | H22: 2080 | K22: 2080
A23: Repairing & Maintatnce | B23: =58256+5320 -> 63576 | C23: =52819+4630 -> 57449 | D23: =1700+73139 -> 74839 | E23: =208618 -> 208618 | H23: 404482 | K23: 404482
A24: Stationary & Printing expenses | B24: =452+3047 -> 3499 | C24: =2988 -> 2988 | D24: =2325 -> 2325 | H24: 8812 | K24: 8812
A25: Telephone expense | C25: =1200 -> 1200 | D25: 0 | E25: 18808 | G25: =9258+3955 -> 13213 | H25: 33221 | K25: 20008 | L25: 13213
A26: Audit fees | B26: =7000 -> 7000 | C26: 7000 | D26: 7000 | H26: 21000 | K26: 21000
A27: CAPITAL EXPENDITURE | B27: =SUM(B28:B31) -> 48428 | C27: 50517 | D27: 30325 | E27: 0 | F27: 0 | G27: 0 | H27: =SUM(H28:H31) -> 129270 | I27: =H27/H32 -> 0.02163553389 | J27: =SUM(J28:J31) -> 0 | K27: 129270 | L27: 0 | M27: 0
A28: Katariya School construction & Land NA | B28: =48428 -> 48428 | H28: 48428 | K28: 48428
A29: Rayka School construction & Land NA | C29: 50517 | H29: 50517 | K29: 50517
A30: Sami School construction & Land NA | D30: =19200+11000+125 -> 30325 | H30: 30325 | K30: 30325
A31: Computers purchase | H31: 0 | K31: 0 | M31: 0
A32: Total | B32: =B5+B12+B14+B27 -> 848419 | C32: =C5+C12+C14+C27 -> 673938 | D32: 946727 | E32: 350537 | F32: 799485 | G32: 2355787 | H32: =H5+H12+H14+H27 -> 5974893 | I32: =SUM(I5:I31) -> 1 | J32: =J5+J12+J14+J27 -> 1127440 | K32: =K5+K12+K14+K27 -> 1692181 | L32: =L5+L12+L14+L27 -> 2355787 | M32: =M5+M12+M14+M27 -> 799485
J33: =J32/H32 -> 0.1886962662 | K33: =K32/H32 -> 0.283215281 | L33: =L32/H32 -> 0.3942810357 | M33: =M32/H32 -> 0.1338074171

Sheet Budget 2013-2014
A1: FINANCIAL REQUIREMENT : NAVSARJAN VIDHYALAY: FOR THE PERIOD 01/06/2013 TO 31/05/2014
A3: SR.NO. | B3: DESCRIPTION | C3: QTY | D3: RATE | E3: MONTHS/DAYS | F3: AMOUNT | G3: %
A4: A | B4: PROGRAMS EXPENDITURE
A5: 1 | B5: Educational material, Sport goods and cultural activities cost for teaching Rs.1500 pm | C5: 3 | D5: 1500 | E5: 10 | F5: =C5*D5*E5 -> 45000
A6: 2 | B6: Up gradation of Science, Computers, Language, Social science labs. | C6: 3 | D6: 100000 | E6: 1 | F6: =C6*D6*E6 -> 300000
B7: Sub Total [A] | F7: =SUM(F5:F6) -> 345000 | G7: =F7/F47 -> 0.08691487708
A8: B | B8: BOARDING & LODGING EXPENSES
A9: 1 | B9: Food exp.Rs.30 x 117 students x304 days | C9: =28+40+49 -> 117 | D9: 30 | E9: 304 | F9: =C9*D9*E9 -> 1067040 | I9: =20+31+31+30+31+9+31+31+29+31+30+0 -> 304
A10: 2 | B10: Hostel maintenance | C10: 3 | D10: 1500 | E10: 12 | F10: =C10*D10*E10 -> 54000
A11: 3 | B11: Medical exp.Rs.500 pm | C11: 3 | D11: 500 | E11: 12 | F11: =C11*D11*E11 -> 18000
B12: Sub Total [B] | F12: =SUM(F9:F11) -> 1139040 | G12: =F12/F47 -> 0.286955135
A13: C | B13: PROGRAM STAFF TRAVELLING
A14: 1 | B14: Public travel to Manager | C14: 3 | D14: 2000 | E14: 12 | F14: =C14*D14*E14 -> 72000
A15: 2 | B15: Transportation and other local travelling | C15: 3 | D15: 2500 | E15: 12 | F15: =C15*D15*E15 -> 90000
B16: Sub Total [C] | F16: =SUM(F14:F15) -> 162000 | G16: =F16/F47 -> 0.04081220315
A17: D | B17: PROGRAM STAFF EXPENDITURE
A18: D1 | B18: Salary for staff (Annexure-1) | C18: 23 staff | D18: 121175 | E18: 12 | F18: =D18*E18 -> 1454100
A19: D2 | B19: Staff welfare | F19: =SUM(F20:F24) -> 462461
A20: D2.1 | B20: PF @12% of Salary scale | C20: 23 staff | D20: 13776 | E20: 12 | F20: =D20*E20 -> 165312
A21: D2.2 | B21: Gratuity@4.17% of Salary scale | C21: 23 staff | D21: 4793 | E21: 12 | F21: =D21*E21 -> 57516
A22: D2.3 | B22: PF admin charges on salary scale | C22: 23 staff | D22: 1844 | E22: 12 | F22: =D22*E22 -> 22128
A23: D2.4 | B23: Food & House rent allowance | C23: 23 staff | D23: 15375 | E23: 12 | F23: =D23*E23 -> 184500
A24: D2.5 | B24: Medi Claim Premium payments | C24: 23 | D24: 1435 | E24: 1 | F24: =D24*E24*C24 -> 33005
B25: Sub Total [ D ] | F25: =F18+F19 -> 1916561 | G25: =F25/F47 -> 0.4828338079
A26: E | B26: PROGRAM ADMINISTRATION
A27: 1 | B27: Audit fees | C27: 3 | D27: 7000 | E27: 1 | F27: =D27*E27*C27 -> 21000
A28: 2 | B28: Electricity Rs.2750 pm | C28: 3 | D28: 2750 | E28: 12 | F28: 99000
A29: 3 | B29: Gardening expenses Rs.1000 pm | C29: 3 | D29: 1000 | E29: 12 | F29: 36000
A30: 4 | B30: Gram Panchayat taxes Rs.7500 pm | C30: 3 | D30: 7500 | E30: 1 | F30: 22500
A31: 5 | B31: News paper exp. Rs.100pm | C31: 3 | D31: 100 | E31: 12 | F31: 3600
A32: 6 | B32: Other Misce.exp.Rs.1000pm | C32: 3 | D32: 1000 | E32: 12 | F32: 36000
A33: 7 | B33: Photocopy expenses | C33: 3 | D33: 250 | E33: 12 | F33: 9000
A34: 8 | B34: Postage & Couriers | C34: 3 | D34: 50 | E34: 12 | F34: 1800
A35: 9 | B35: Repairing & maint. (Computers & other equip.) | C35: 3 | D35: 1000 | E35: 12 | F35: =D35*E35*C35 -> 36000
A36: 10 | B36: Stationary & Printing expenses | C36: 3 | D36: 100 | E36: 12 | F36: 3600
A37: 11 | B37: Telephone expenses at School office | C37: 3 | D37: 500 | E37: 12 | F37: =D37*E37*C37 -> 18000
A38: 12 | B38: Telephone expenses to Managers | C38: 3 | D38: 300 | E38: 12 | F38: =D38*E38*C38 -> 10800
B39: Sub Total [ E ] | F39: =SUM(F27:F38) -> 297300 | G39: =F39/F47 -> 0.0748979506
A40: F | B40: INVENTORY ITEMS PURCHASE
A41: 1 | B41: Kitchen cutlery items | C41: 3 | D41: 6500 | E41: 1 | F41: =D41*E41*C41 -> 19500
B42: Sub Total [ F ] | F42: =SUM(F41:F41) -> 19500 | G42: =F42/F47 -> 0.004912580009
A43: G | B43: SCHOOL CONSTRUCTION/REPAIRING WORK
A44: 1 | B44: School construction or repairing work | C44: 3 | D44: 2500 | E44: 12 | F44: =D44*E44*C44 -> 90000
B45: Sub Total [ G ] | F45: =SUM(F44:F44) -> 90000 | G45: =F45/F47 -> 0.0226734462
B47: Grand Total | F47: =SUM(F16+F25+F39+F7+F12+F42+F45) -> 3969401 | G47: =SUM(G16+G25+G39+G7+G12+G42+G45) -> 1
A50: - | B50: SOURCE OF INCOME
A51: 1 | B51: Asha For Education | C51: 117 | D51: 420 | E51: 10 | F51: =C51*D51*E51 -> 491400
A52: 2 | B52: SDTT grants | F52: =F25+F14+F38-(68626+(300*3)+(2000*3)) -> 1923835
A53: 3 | B53: Students contribution | C53: 117 | D53: 750 | E53: 10 | F53: =C53*D53*E53 -> 877500
A54: 4 | B54: Funds utilisation | F54: =239004+75526 -> 314530
B57: Sub Total [ D ] | F57: =SUM(F51:F56) -> 3607265
F59: =F47-F57 -> 362136
